[Event "*** Titled Tuesday Blitz"]
[Site "Chess.com"]
[Date "2019.08.06"]
[Round "9"]
[White "guillembaches"]
[Black "Karina_Ivanova"]
[Result "0-1"]
[WhiteElo "2303"]
[BlackElo "2191"]
[TimeControl "180+2"]
[EndTime "15:12:21 PDT"]
[Termination "Karina_Ivanova won on time"]

1. e4 {[%clk 0:03:01.9]} 1... c6 {[%clk 0:02:59.7]} 2. Nc3 {[%clk 0:03:01.4]}
2... d5 {[%clk 0:03:00.3]} 3. Nf3 {[%clk 0:03:02.6]} 3... dxe4 {[%clk
0:03:00.9]} 4. Nxe4 {[%clk 0:03:03.1]} 4... Nf6 {[%clk 0:03:02.2]} 5. Nxf6+
{[%clk 0:03:03.1]} 5... exf6 {[%clk 0:03:03]} 6. Bc4 {[%clk 0:03:04.1]} 6... Bd6
{[%clk 0:03:03]} 7. Qe2+ {[%clk 0:03:04.4]} 7... Qe7 {[%clk 0:03:03]} 8. Qxe7+
{[%clk 0:03:05.2]} 8... Bxe7 {[%clk 0:03:02.5]} 9. h3 {[%clk 0:02:59.2]} 9...
Nd7 {[%clk 0:02:58.1]} 10. d4 {[%clk 0:02:56.8]} 10... Nb6 {[%clk 0:02:54.5]}
11. Bd3 {[%clk 0:02:57.8]} 11... Be6 {[%clk 0:02:50.1]} 12. b3 {[%clk
0:02:53.8]} 12... O-O {[%clk 0:02:44.8]} 13. c4 {[%clk 0:02:51]} 13... Rfe8
{[%clk 0:02:43.2]} 14. O-O {[%clk 0:02:44.8]} 14... Rad8 {[%clk 0:02:41.1]} 15.
Rd1 {[%clk 0:02:38.1]} 15... f5 {[%clk 0:02:30.2]} 16. Bf4 {[%clk 0:02:35.5]}
16... Bf6 {[%clk 0:02:26.4]} 17. Be5 {[%clk 0:02:12.5]} 17... Nd7 {[%clk
0:02:21.5]} 18. Bc7 {[%clk 0:02:09.8]} 18... Rc8 {[%clk 0:02:21.2]} 19. Bf4
{[%clk 0:02:10.6]} 19... g6 {[%clk 0:02:09.5]} 20. Rac1 {[%clk 0:02:05.1]} 20...
Nb6 {[%clk 0:02:05.3]} 21. Kf1 {[%clk 0:02:01.4]} 21... Rcd8 {[%clk 0:02:05.2]}
22. Be5 {[%clk 0:02:02.4]} 22... Bxe5 {[%clk 0:02:04.6]} 23. dxe5 {[%clk
0:02:01.7]} 23... c5 {[%clk 0:02:04]} 24. Ke2 {[%clk 0:01:56]} 24... f6 {[%clk
0:01:59.2]} 25. Kf1 {[%clk 0:01:51.2]} 25... fxe5 {[%clk 0:01:55.1]} 26. Nxe5
{[%clk 0:01:51.8]} 26... Nd7 {[%clk 0:01:56]} 27. Nf3 {[%clk 0:01:37.3]} 27...
Nf6 {[%clk 0:01:48.2]} 28. Ng5 {[%clk 0:01:35]} 28... Bc8 {[%clk 0:01:44.1]} 29.
Bc2 {[%clk 0:01:35.9]} 29... h6 {[%clk 0:01:42.3]} 30. Nf3 {[%clk 0:01:36.2]}
30... Kg7 {[%clk 0:01:38.5]} 31. Rxd8 {[%clk 0:01:32.4]} 31... Rxd8 {[%clk
0:01:38.9]} 32. Re1 {[%clk 0:01:32.4]} 32... Re8 {[%clk 0:01:38.7]} 33. Ne5
{[%clk 0:01:21]} 33... Nd7 {[%clk 0:01:32.4]} 34. Nd3 {[%clk 0:01:03.6]} 34...
Rxe1+ {[%clk 0:01:31.9]} 35. Kxe1 {[%clk 0:01:04.5]} 35... b6 {[%clk 0:01:33.3]}
36. Nf4 {[%clk 0:01:02.2]} 36... Bb7 {[%clk 0:01:30.6]} 37. g3 {[%clk
0:00:54.8]} 37... Kf6 {[%clk 0:01:22.5]} 38. h4 {[%clk 0:00:54.9]} 38... Ne5
{[%clk 0:01:13.1]} 39. Kd2 {[%clk 0:00:48.6]} 39... g5 {[%clk 0:01:08.1]} 40.
hxg5+ {[%clk 0:00:48.8]} 40... hxg5 {[%clk 0:01:08.5]} 41. Nd3 {[%clk
0:00:49.4]} 41... Nxd3 {[%clk 0:01:07.9]} 42. Bxd3 {[%clk 0:00:50.2]} 42... Ke5
{[%clk 0:01:08.2]} 43. Ke3 {[%clk 0:00:46.1]} 43... f4+ {[%clk 0:01:08.8]} 44.
gxf4+ {[%clk 0:00:47]} 44... gxf4+ {[%clk 0:01:09.1]} 45. Kd2 {[%clk 0:00:47.9]}
45... Kd4 {[%clk 0:01:10]} 46. Be2 {[%clk 0:00:48.5]} 46... Be4 {[%clk
0:01:04.1]} 47. a3 {[%clk 0:00:42.3]} 47... a6 {[%clk 0:01:01.2]} 48. Bd1 {[%clk
0:00:42.3]} 48... Bd3 {[%clk 0:00:53.2]} 49. Bf3 {[%clk 0:00:40.3]} 49... a5
{[%clk 0:00:52.5]} 50. Bc6 {[%clk 0:00:40.3]} 50... Bf5 {[%clk 0:00:44.8]} 51.
a4 {[%clk 0:00:33.3]} 51... Bg4 {[%clk 0:00:27]} 52. Bb7 {[%clk 0:00:31.9]}
52... Bh3 {[%clk 0:00:24.3]} 53. Bc6 {[%clk 0:00:32.6]} 53... Bf5 {[%clk
0:00:22.5]} 54. Bb7 {[%clk 0:00:33.4]} 54... Bd3 {[%clk 0:00:22.1]} 55. Bc6
{[%clk 0:00:33.9]} 55... Bf1 {[%clk 0:00:22.5]} 56. Bb7 {[%clk 0:00:34.1]} 56...
Ke5 {[%clk 0:00:22.7]} 57. Kc3 {[%clk 0:00:31]} 57... Kf5 {[%clk 0:00:05.3]} 58.
Bf3 {[%clk 0:00:31.4]} 58... Kg5 {[%clk 0:00:03.8]} 59. Kd2 {[%clk 0:00:32.2]}
59... Kh4 {[%clk 0:00:04.8]} 60. Ke1 {[%clk 0:00:28.3]} 60... Bd3 {[%clk
0:00:05.4]} 61. Kd2 {[%clk 0:00:28.3]} 61... Bf5 {[%clk 0:00:06.3]} 62. Ke1
{[%clk 0:00:27.2]} 62... Kh3 {[%clk 0:00:07.1]} 63. Bd5 {[%clk 0:00:26.3]} 63...
Bc2 {[%clk 0:00:06.9]} 64. Bc6 {[%clk 0:00:26.9]} 64... Bxb3 {[%clk 0:00:07.7]}
65. Bb5 {[%clk 0:00:28.2]} 65... Bc2 {[%clk 0:00:08.7]} 66. Ke2 {[%clk
0:00:28.7]} 66... Be4 {[%clk 0:00:09.4]} 67. Kf1 {[%clk 0:00:29.2]} 67... Kg4
{[%clk 0:00:09.3]} 68. Ke2 {[%clk 0:00:30.2]} 68... Bf5 {[%clk 0:00:09.3]} 69.
Bc6 {[%clk 0:00:28.1]} 69... Kg5 {[%clk 0:00:08.7]} 70. Bb5 {[%clk 0:00:29.2]}
70... Kf6 {[%clk 0:00:09.2]} 71. Kf3 {[%clk 0:00:29]} 71... Ke5 {[%clk
0:00:10.2]} 72. Bc6 {[%clk 0:00:30.2]} 72... Bg6 {[%clk 0:00:10.6]} 73. Bb7
{[%clk 0:00:30.9]} 73... Bh5+ {[%clk 0:00:11.3]} 74. Kg2 {[%clk 0:00:30.6]}
74... Kd4 {[%clk 0:00:12.1]} 75. Bd5 {[%clk 0:00:31.8]} 75... Be2 {[%clk
0:00:12.4]} 76. Kh3 {[%clk 0:00:32.9]} 76... Bxc4 {[%clk 0:00:13.4]} 0-1

[Event "*** Titled Tuesday Blitz"]
[Site "Chess.com"]
[Date "2019.08.06"]
[Round "9"]
[White "Chess_Boxer123"]
[Black "M1711"]
[Result "0-1"]
[WhiteElo "2440"]
[BlackElo "2568"]
[TimeControl "180+2"]
[EndTime "15:12:44 PDT"]
[Termination "M1711 won by resignation"]

1. d4 {[%clk 0:03:01.9]} 1... Nf6 {[%clk 0:03:01.1]} 2. Bf4 {[%clk 0:03:01.9]}
2... d5 {[%clk 0:03:02]} 3. e3 {[%clk 0:03:03.1]} 3... c5 {[%clk 0:03:03.6]} 4.
Nf3 {[%clk 0:03:03.8]} 4... Nc6 {[%clk 0:03:04.6]} 5. Nbd2 {[%clk 0:03:05.2]}
5... Bf5 {[%clk 0:03:03]} 6. dxc5 {[%clk 0:03:05.7]} 6... e6 {[%clk 0:03:01.7]}
7. Nd4 {[%clk 0:03:06.8]} 7... Bxc5 {[%clk 0:02:57.6]} 8. Nxf5 {[%clk
0:03:07.9]} 8... exf5 {[%clk 0:02:59.5]} 9. c3 {[%clk 0:03:08.8]} 9... O-O
{[%clk 0:03:00.4]} 10. Be2 {[%clk 0:03:00.4]} 10... Re8 {[%clk 0:02:55.8]} 11.
O-O {[%clk 0:03:00.7]} 11... Qd7 {[%clk 0:02:52.9]} 12. Nf3 {[%clk 0:02:58.7]}
12... Ne4 {[%clk 0:02:52.3]} 13. Nd4 {[%clk 0:02:59.7]} 13... Nxd4 {[%clk
0:02:47.5]} 14. exd4 {[%clk 0:02:56.9]} 14... Bd6 {[%clk 0:02:48.6]} 15. Bxd6
{[%clk 0:02:58]} 15... Qxd6 {[%clk 0:02:50.3]} 16. f3 {[%clk 0:02:56.2]} 16...
Nf6 {[%clk 0:02:47.4]} 17. Qd2 {[%clk 0:02:53.2]} 17... Re7 {[%clk 0:02:47.9]}
18. Rae1 {[%clk 0:02:53.5]} 18... Rae8 {[%clk 0:02:46.7]} 19. Bd3 {[%clk
0:02:54.6]} 19... f4 {[%clk 0:02:47]} 20. Bb5 {[%clk 0:02:43.6]} 20... Rxe1
{[%clk 0:02:38.1]} 21. Rxe1 {[%clk 0:02:45.5]} 21... Rxe1+ {[%clk 0:02:34.6]}
22. Qxe1 {[%clk 0:02:47.4]} 22... g5 {[%clk 0:02:29.6]} 23. Qe5 {[%clk 0:02:44]}
23... Qxe5 {[%clk 0:02:29]} 24. dxe5 {[%clk 0:02:45.9]} 24... Nh5 {[%clk
0:02:30.1]} 25. Bd7 {[%clk 0:02:41.8]} 25... Kf8 {[%clk 0:02:11.1]} 26. Bc8
{[%clk 0:02:40.6]} 26... b6 {[%clk 0:02:10.4]} 27. Bb7 {[%clk 0:02:41.8]} 27...
Ke7 {[%clk 0:02:07.2]} 28. Bxd5 {[%clk 0:02:42.3]} 28... Ng7 {[%clk 0:02:02.7]}
29. g4 {[%clk 0:02:29.7]} 29... Ne6 {[%clk 0:01:50]} 30. b4 {[%clk 0:02:25.1]}
30... Nf8 {[%clk 0:01:46.4]} 31. Kf2 {[%clk 0:01:20]} 31... Nd7 {[%clk
0:01:46.1]} 32. e6 {[%clk 0:01:08]} 32... fxe6 {[%clk 0:01:46.1]} 33. Bc6 {[%clk
0:01:08.5]} 33... Nf6 {[%clk 0:01:39.1]} 34. Ke2 {[%clk 0:01:05.3]} 34... Kd6
{[%clk 0:01:39.6]} 35. Ba8 {[%clk 0:01:05.8]} 35... b5 {[%clk 0:01:13.3]} 36.
Kd3 {[%clk 0:01:02.9]} 36... Nd5 {[%clk 0:01:12.9]} 37. h3 {[%clk 0:00:49.7]}
37... h6 {[%clk 0:01:10.5]} 38. a3 {[%clk 0:00:49.4]} 38... Nb6 {[%clk 0:01:09]}
39. Bb7 {[%clk 0:00:47.4]} 39... Nc4 {[%clk 0:01:08.3]} 40. Ke4 {[%clk
0:00:14.4]} 40... Nxa3 {[%clk 0:00:36.1]} 41. Kd4 {[%clk 0:00:14.6]} 41... Nc4
{[%clk 0:00:35.5]} 42. Ba6 {[%clk 0:00:12.3]} 42... Kc6 {[%clk 0:00:22.4]} 43.
Bc8 {[%clk 0:00:13.5]} 43... e5+ {[%clk 0:00:22.1]} 44. Kd3 {[%clk 0:00:14.9]}
44... Nd6 {[%clk 0:00:18.8]} 45. Be6 {[%clk 0:00:14.7]} 45... Kb6 {[%clk
0:00:18.7]} 46. Bd5 {[%clk 0:00:15.5]} 46... a5 {[%clk 0:00:19.6]} 47. bxa5+
{[%clk 0:00:15.7]} 47... Kxa5 {[%clk 0:00:21.5]} 48. Be6 {[%clk 0:00:17.1]}
48... Ka4 {[%clk 0:00:20.6]} 49. c4 {[%clk 0:00:12.7]} 49... bxc4+ {[%clk
0:00:05]} 50. Bxc4 {[%clk 0:00:14.6]} 50... Kb4 {[%clk 0:00:06.6]} 51. Be6
{[%clk 0:00:15.3]} 51... Kc5 {[%clk 0:00:07.6]} 52. Ba2 {[%clk 0:00:16.1]} 52...
Nb5 {[%clk 0:00:07.7]} 53. Bg8 {[%clk 0:00:13.5]} 53... Kd6 {[%clk 0:00:08.3]}
54. Ke4 {[%clk 0:00:14.3]} 54... Nd4 {[%clk 0:00:07.1]} 55. Bc4 {[%clk 0:00:15]}
55... Nc2 {[%clk 0:00:07.4]} 56. Bd3 {[%clk 0:00:15.2]} 56... Ne3 {[%clk
0:00:04.6]} 57. Bb1 {[%clk 0:00:15.5]} 57... Ke6 {[%clk 0:00:05.5]} 58. Ba2+
{[%clk 0:00:16.3]} 58... Kf6 {[%clk 0:00:06.9]} 59. Bb3 {[%clk 0:00:17.5]} 59...
Nf1 {[%clk 0:00:06.8]} 60. Bd1 {[%clk 0:00:12.5]} 60... Nd2+ {[%clk 0:00:07.1]}
61. Kd3 {[%clk 0:00:13.3]} 61... Nf1 {[%clk 0:00:07]} 62. Ke4 {[%clk 0:00:08.7]}
62... Ng3+ {[%clk 0:00:08.1]} 63. Kd3 {[%clk 0:00:10]} 63... h5 {[%clk
0:00:05.3]} 64. gxh5 {[%clk 0:00:10.5]} 64... Nxh5 {[%clk 0:00:06.4]} 65. Ke2
{[%clk 0:00:10.4]} 65... Ng7 {[%clk 0:00:07.4]} 66. Kd3 {[%clk 0:00:10.8]} 66...
Ne6 {[%clk 0:00:08.1]} 67. Ke4 {[%clk 0:00:11.2]} 67... Nd4 {[%clk 0:00:08.1]}
68. Ba4 {[%clk 0:00:11.5]} 68... Ne2 {[%clk 0:00:09.5]} 69. Bd7 {[%clk
0:00:09.7]} 69... Nc3+ {[%clk 0:00:09.4]} 70. Kd3 {[%clk 0:00:10.4]} 70... Nd5
{[%clk 0:00:10.6]} 71. Bc8 {[%clk 0:00:10.1]} 71... Ne7 {[%clk 0:00:11.4]} 72.
Bd7 {[%clk 0:00:10.5]} 72... Nf5 {[%clk 0:00:12.7]} 73. Ke4 {[%clk 0:00:11]}
73... Nd6+ {[%clk 0:00:10.5]} 74. Kd5 {[%clk 0:00:11.8]} 74... Nf5 {[%clk
0:00:07.5]} 75. Ke4 {[%clk 0:00:12.5]} 75... Ne3 {[%clk 0:00:08.5]} 76. Bc8
{[%clk 0:00:12.8]} 76... Nc4 {[%clk 0:00:09.2]} 77. Bd7 {[%clk 0:00:06.5]} 77...
Nd2+ {[%clk 0:00:09.8]} 78. Kd3 {[%clk 0:00:07.8]} 78... Nxf3 {[%clk 0:00:11.7]}
79. Ke4 {[%clk 0:00:09.2]} 79... Nd4 {[%clk 0:00:10]} 80. Bg4 {[%clk 0:00:09.7]}
80... Ne6 {[%clk 0:00:08.9]} 81. Kd5 {[%clk 0:00:07.7]} 81... Nd8 {[%clk
0:00:08.8]} 82. Ke4 {[%clk 0:00:05.9]} 82... Nf7 {[%clk 0:00:10.2]} 83. Kd5
{[%clk 0:00:05.4]} 83... Nh6 {[%clk 0:00:11.7]} 84. Bd1 {[%clk 0:00:04.7]} 84...
Nf5 {[%clk 0:00:12.1]} 85. Ke4 {[%clk 0:00:05.9]} 85... Ng3+ {[%clk 0:00:10.3]}
86. Kd5 {[%clk 0:00:06.3]} 86... e4 {[%clk 0:00:11.5]} 87. Bg4 {[%clk
0:00:07.4]} 87... e3 {[%clk 0:00:12.2]} 0-1

[Event "*** Titled Tuesday Blitz"]
[Site "Chess.com"]
[Date "2019.08.06"]
[Round "9"]
[White "OparinGrigoriy"]
[Black "Tjktiger"]
[Result "1/2-1/2"]
[WhiteElo "2982"]
[BlackElo "2835"]
[TimeControl "180+2"]
[EndTime "15:14:32 PDT"]
[Termination "Game drawn by repetition"]

1. g3 {[%clk 0:03:01.9]} 1... c5 {[%clk 0:02:59.4]} 2. Bg2 {[%clk 0:03:03.8]}
2... Nc6 {[%clk 0:03:00.9]} 3. Nf3 {[%clk 0:03:05.7]} 3... g6 {[%clk 0:03:01.6]}
4. c4 {[%clk 0:03:07.1]} 4... Bg7 {[%clk 0:03:02.6]} 5. Nc3 {[%clk 0:03:08.2]}
5... d6 {[%clk 0:03:02.2]} 6. O-O {[%clk 0:03:09.1]} 6... Rb8 {[%clk 0:03:03.2]}
7. e3 {[%clk 0:03:10.2]} 7... Nh6 {[%clk 0:03:03.1]} 8. d4 {[%clk 0:03:11.7]}
8... cxd4 {[%clk 0:03:03.8]} 9. exd4 {[%clk 0:03:13.6]} 9... Bg4 {[%clk
0:03:03.6]} 10. Re1 {[%clk 0:03:06.3]} 10... Nf5 {[%clk 0:02:51.4]} 11. d5
{[%clk 0:03:00.4]} 11... Ne5 {[%clk 0:02:46.6]} 12. Qa4+ {[%clk 0:03:01.4]}
12... b5 {[%clk 0:02:38.2]} 13. Nxb5 {[%clk 0:03:00]} 13... Nxf3+ {[%clk
0:02:25.4]} 14. Bxf3 {[%clk 0:03:00.4]} 14... Bxf3 {[%clk 0:02:26.3]} 15. Nd4+
{[%clk 0:02:59.1]} 15... Qd7 {[%clk 0:02:26.4]} 16. Qxd7+ {[%clk 0:02:59.4]}
16... Kxd7 {[%clk 0:02:27.6]} 17. Nxf3 {[%clk 0:03:00.8]} 17... Rhc8 {[%clk
0:02:25.8]} 18. Re4 {[%clk 0:02:44.6]} 18... Rb4 {[%clk 0:02:16.9]} 19. g4
{[%clk 0:02:41.3]} 19... Nh6 {[%clk 0:02:11.2]} 20. Bxh6 {[%clk 0:02:41.9]}
20... Bxh6 {[%clk 0:02:11.6]} 21. b3 {[%clk 0:02:43.4]} 21... a5 {[%clk
0:02:02]} 22. Rae1 {[%clk 0:02:44.8]} 22... Re8 {[%clk 0:02:02.2]} 23. Nd4
{[%clk 0:02:43.1]} 23... Rb6 {[%clk 0:01:41.7]} 24. a4 {[%clk 0:02:23.3]} 24...
Bg7 {[%clk 0:01:35.5]} 25. Nb5 {[%clk 0:02:24.2]} 25... g5 {[%clk 0:01:30.5]}
26. Kg2 {[%clk 0:02:24.4]} 26... Be5 {[%clk 0:01:31.3]} 27. h4 {[%clk
0:02:23.7]} 27... h6 {[%clk 0:01:27.9]} 28. hxg5 {[%clk 0:02:24.6]} 28... hxg5
{[%clk 0:01:29.2]} 29. Rh1 {[%clk 0:02:25.4]} 29... Rbb8 {[%clk 0:01:28.7]} 30.
Re3 {[%clk 0:02:26.6]} 30... Rh8 {[%clk 0:01:25.9]} 31. Reh3 {[%clk 0:02:28]}
31... Rxh3 {[%clk 0:01:25.2]} 32. Rxh3 {[%clk 0:02:29.9]} 32... Rg8 {[%clk
0:01:13.4]} 33. Kf3 {[%clk 0:02:29.4]} 33... f5 {[%clk 0:01:03.8]} 34. Na7
{[%clk 0:02:25.2]} 34... Rf8 {[%clk 0:01:00.9]} 35. gxf5 {[%clk 0:02:26.3]}
35... Rxf5+ {[%clk 0:01:01.7]} 36. Ke2 {[%clk 0:02:19.4]} 36... Bd4 {[%clk
0:01:01.2]} 37. Nc6 {[%clk 0:02:20.2]} 37... Rxf2+ {[%clk 0:01:01.9]} 38. Ke1
{[%clk 0:02:21.2]} 38... Rf4 {[%clk 0:00:57.9]} 39. Rh7 {[%clk 0:02:17]} 39...
Bf6 {[%clk 0:00:56.2]} 40. Ke2 {[%clk 0:02:12.8]} 40... g4 {[%clk 0:00:56.7]}
41. Ke3 {[%clk 0:02:13.5]} 41... Rf3+ {[%clk 0:00:56.1]} 42. Ke4 {[%clk
0:02:10.7]} 42... Rxb3 {[%clk 0:00:55]} 43. Rh1 {[%clk 0:02:00.9]} 43... Ra3
{[%clk 0:00:44.6]} 44. Rb1 {[%clk 0:01:48.5]} 44... Rxa4 {[%clk 0:00:42.6]} 45.
Rb7+ {[%clk 0:01:46.8]} 45... Kc8 {[%clk 0:00:30.2]} 46. Ra7 {[%clk 0:01:47.5]}
46... g3 {[%clk 0:00:23.5]} 47. Kf3 {[%clk 0:01:44.6]} 47... Ra3+ {[%clk
0:00:22.7]} 48. Kg2 {[%clk 0:01:45.9]} 48... a4 {[%clk 0:00:23.2]} 49. Kh3
{[%clk 0:01:26.2]} 49... Bg5 {[%clk 0:00:19.4]} 50. Kg2 {[%clk 0:01:25.5]} 50...
Bh4 {[%clk 0:00:14.3]} 51. Kh3 {[%clk 0:01:26.2]} 51... Bf6 {[%clk 0:00:14.5]}
52. Kg2 {[%clk 0:01:27.1]} 52... Ra1 {[%clk 0:00:07.5]} 53. Kxg3 {[%clk
0:01:27.7]} 53... a3 {[%clk 0:00:09.4]} 54. Kh2 {[%clk 0:01:21]} 54... a2 {[%clk
0:00:09.9]} 55. Kg2 {[%clk 0:01:21.9]} 55... Bg5 {[%clk 0:00:08.6]} 56. Nb4
{[%clk 0:01:16.9]} 56... Rb1 {[%clk 0:00:06.8]} 57. Nxa2 {[%clk 0:01:16.9]}
57... Ra1 {[%clk 0:00:07.8]} 58. Kf3 {[%clk 0:01:15.6]} 58... Kb8 {[%clk
0:00:05.6]} 59. Ra6 {[%clk 0:01:14.6]} 59... Kb7 {[%clk 0:00:05.1]} 60. Ra4
{[%clk 0:01:11.7]} 60... Bf6 {[%clk 0:00:05.1]} 61. Ke4 {[%clk 0:01:09.2]} 61...
Kb6 {[%clk 0:00:05.7]} 62. Kd3 {[%clk 0:01:10.4]} 62... Be5 {[%clk 0:00:05.5]}
63. Rb4+ {[%clk 0:00:57.5]} 63... Kc7 {[%clk 0:00:05.8]} 64. Ra4 {[%clk
0:00:56.9]} 64... Kb6 {[%clk 0:00:06.8]} 65. Ra8 {[%clk 0:00:57.3]} 65... Kb7
{[%clk 0:00:06.4]} 66. Ra5 {[%clk 0:00:58.8]} 66... Kb6 {[%clk 0:00:07.4]} 67.
Rb5+ {[%clk 0:00:59.9]} 67... Kc7 {[%clk 0:00:09.1]} 68. Nb4 {[%clk 0:01:01.8]}
68... Ra3+ {[%clk 0:00:08.2]} 69. Ke4 {[%clk 0:01:03.2]} 69... Rc3 {[%clk
0:00:08.4]} 70. Na6+ {[%clk 0:01:04.4]} 70... Kd7 {[%clk 0:00:09.7]} 71. Rb4
{[%clk 0:01:01.6]} 71... Ke8 {[%clk 0:00:06.7]} 72. Nc7+ {[%clk 0:00:47.9]}
72... Kf7 {[%clk 0:00:07.2]} 73. Ne6 {[%clk 0:00:49.8]} 73... Bf6 {[%clk
0:00:07.4]} 74. Ra4 {[%clk 0:00:50.2]} 74... Rc1 {[%clk 0:00:06.7]} 75. Kd3
{[%clk 0:00:50.5]} 75... Kg6 {[%clk 0:00:07.1]} 76. Ke4 {[%clk 0:00:51.6]} 76...
Re1+ {[%clk 0:00:05.3]} 77. Kf4 {[%clk 0:00:53.1]} 77... Be5+ {[%clk 0:00:05.4]}
78. Kg4 {[%clk 0:00:54.1]} 78... Kf6 {[%clk 0:00:06.9]} 79. Nd8 {[%clk
0:00:55.4]} 79... Re3 {[%clk 0:00:05.9]} 80. Nc6 {[%clk 0:00:54.8]} 80... Rg3+
{[%clk 0:00:05.8]} 81. Kh4 {[%clk 0:00:56.1]} 81... Rg7 {[%clk 0:00:07.3]} 82.
Ra8 {[%clk 0:00:44.7]} 82... Kf5 {[%clk 0:00:07.4]} 83. Rf8+ {[%clk 0:00:45.6]}
83... Bf6+ {[%clk 0:00:07.1]} 84. Kh3 {[%clk 0:00:46.9]} 84... Kf4 {[%clk
0:00:07.9]} 85. Nxe7 {[%clk 0:00:43.2]} 85... Rxe7 {[%clk 0:00:07.8]} 86. Rxf6+
{[%clk 0:00:44.4]} 86... Ke5 {[%clk 0:00:09.5]} 87. Rg6 {[%clk 0:00:42.5]} 87...
Rd7 {[%clk 0:00:07]} 88. Rg4 {[%clk 0:00:42.6]} 88... Ra7 {[%clk 0:00:05.2]} 89.
Kg3 {[%clk 0:00:43.7]} 89... Ra8 {[%clk 0:00:05.8]} 90. Kf3 {[%clk 0:00:44.8]}
90... Ra3+ {[%clk 0:00:05.9]} 91. Ke2 {[%clk 0:00:46.3]} 91... Rh3 {[%clk
0:00:04.7]} 92. Kd2 {[%clk 0:00:47.7]} 92... Rf3 {[%clk 0:00:05.7]} 93. Kc2
{[%clk 0:00:48.8]} 93... Rh3 {[%clk 0:00:06.7]} 94. Kd2 {[%clk 0:00:50.1]} 94...
Rf3 {[%clk 0:00:06.2]} 95. Rh4 {[%clk 0:00:51.3]} 95... Ra3 {[%clk 0:00:06.3]}
96. Kc2 {[%clk 0:00:51.8]} 96... Rf3 {[%clk 0:00:06.9]} 97. Kb2 {[%clk
0:00:53.1]} 97... Re3 {[%clk 0:00:07.9]} 98. Rg4 {[%clk 0:00:48]} 98... Rf3
{[%clk 0:00:08.7]} 99. Kc2 {[%clk 0:00:47.8]} 99... Rh3 {[%clk 0:00:09.3]} 100.
Kd2 {[%clk 0:00:48.3]} 1/2-1/2

[Event "*** Titled Tuesday Blitz"]
[Site "Chess.com"]
[Date "2019.08.06"]
[Round "10"]
[White "Triumphmate"]
[Black "ruvat"]
[Result "1/2-1/2"]
[WhiteElo "2292"]
[BlackElo "2352"]
[TimeControl "180+2"]
[EndTime "15:18:24 PDT"]
[Termination "Game drawn by agreement"]

1. e4 {[%clk 0:03:01.9]} 1... d6 {[%clk 0:03:00.6]} 2. d4 {[%clk 0:02:58.2]}
2... Nf6 {[%clk 0:03:01.5]} 3. Bd3 {[%clk 0:02:58.5]} 3... e5 {[%clk 0:03:00.7]}
4. c3 {[%clk 0:02:56]} 4... d5 {[%clk 0:02:57.9]} 5. dxe5 {[%clk 0:02:57]} 5...
Nxe4 {[%clk 0:02:58.3]} 6. Bxe4 {[%clk 0:02:55.8]} 6... dxe4 {[%clk 0:03:00.2]}
7. Qxd8+ {[%clk 0:02:57.4]} 7... Kxd8 {[%clk 0:03:01]} 8. Bg5+ {[%clk
0:02:59.1]} 8... Be7 {[%clk 0:03:01.9]} 9. Bxe7+ {[%clk 0:02:58.8]} 9... Kxe7
{[%clk 0:03:03.8]} 10. Nd2 {[%clk 0:03:00.5]} 10... Nc6 {[%clk 0:02:48.7]} 11.
O-O-O {[%clk 0:02:59.5]} 11... Nxe5 {[%clk 0:02:42.8]} 12. Nxe4 {[%clk
0:03:00.1]} 12... Bf5 {[%clk 0:02:40.2]} 13. f3 {[%clk 0:02:57.5]} 13... Bxe4
{[%clk 0:02:38.8]} 14. fxe4 {[%clk 0:02:59.4]} 14... Rad8 {[%clk 0:02:22.3]} 15.
Nf3 {[%clk 0:03:00.7]} 15... Ng4 {[%clk 0:01:50.4]} 16. Rhe1 {[%clk 0:02:50]}
16... Rxd1+ {[%clk 0:01:37.7]} 17. Kxd1 {[%clk 0:02:45.3]} 17... Rd8+ {[%clk
0:01:36.1]} 18. Ke2 {[%clk 0:02:44.7]} 18... f6 {[%clk 0:01:34.1]} 19. h3 {[%clk
0:02:37.1]} 19... Ne5 {[%clk 0:01:25.5]} 1/2-1/2

[Event "*** Titled Tuesday Blitz"]
[Site "Chess.com"]
[Date "2019.08.06"]
[Round "10"]
[White "Roachelley"]
[Black "ClockworkKubrick"]
[Result "1-0"]
[WhiteElo "2218"]
[BlackElo "2168"]
[TimeControl "180+2"]
[EndTime "15:18:44 PDT"]
[Termination "Roachelley won by resignation"]

1. d4 {[%clk 0:03:01.9]} 1... d6 {[%clk 0:03:01.9]} 2. c4 {[%clk 0:03:01.9]}
2... Nf6 {[%clk 0:03:03.8]} 3. Nc3 {[%clk 0:03:01.5]} 3... g6 {[%clk 0:03:05.7]}
4. e4 {[%clk 0:03:02.6]} 4... Bg7 {[%clk 0:03:07.6]} 5. f3 {[%clk 0:03:04.2]}
5... O-O {[%clk 0:03:08.9]} 6. Be3 {[%clk 0:03:05.9]} 6... c5 {[%clk 0:03:09.1]}
7. Nge2 {[%clk 0:03:05.6]} 7... Nc6 {[%clk 0:03:09.7]} 8. d5 {[%clk 0:03:06.9]}
8... Ne5 {[%clk 0:03:10.9]} 9. Ng3 {[%clk 0:03:08.5]} 9... a6 {[%clk 0:03:12]}
10. Be2 {[%clk 0:03:08]} 10... Rb8 {[%clk 0:03:12.7]} 11. a4 {[%clk 0:03:07.3]}
11... Bd7 {[%clk 0:03:12]} 12. O-O {[%clk 0:03:04.8]} 12... Qe8 {[%clk
0:03:09.2]} 13. f4 {[%clk 0:03:02.3]} 13... Neg4 {[%clk 0:03:07.6]} 14. Bd2
{[%clk 0:03:00.4]} 14... b5 {[%clk 0:03:06.9]} 15. axb5 {[%clk 0:02:58.7]} 15...
axb5 {[%clk 0:03:07.5]} 16. h3 {[%clk 0:02:58.5]} 16... Nh6 {[%clk 0:03:07.5]}
17. cxb5 {[%clk 0:02:54.7]} 17... Bxb5 {[%clk 0:03:07]} 18. Nxb5 {[%clk
0:02:53.5]} 18... Rxb5 {[%clk 0:03:08.1]} 19. Bxb5 {[%clk 0:02:55]} 19... Qxb5
{[%clk 0:03:09.1]} 20. Bc3 {[%clk 0:02:55.4]} 20... Nd7 {[%clk 0:03:04.2]} 21.
Qa4 {[%clk 0:02:49.7]} 21... Qb7 {[%clk 0:02:59.6]} 22. Qc6 {[%clk 0:02:46.6]}
22... Qc8 {[%clk 0:02:37]} 23. Ra7 {[%clk 0:02:45.1]} 23... Bxc3 {[%clk
0:02:32.3]} 24. bxc3 {[%clk 0:02:43.3]} 24... Qxc6 {[%clk 0:01:54.1]} 25. dxc6
{[%clk 0:02:43.6]} 25... Nb6 {[%clk 0:01:55.4]} 26. Rb1 {[%clk 0:02:36.1]} 26...
Nc4 {[%clk 0:01:55.4]} 27. Rxe7 {[%clk 0:02:33.9]} 27... Rc8 {[%clk 0:01:52.7]}
28. c7 {[%clk 0:02:33.8]} 28... Kg7 {[%clk 0:01:45.9]} 29. Rb8 {[%clk
0:02:32.9]} 29... Rxc7 {[%clk 0:01:47.5]} 30. Rxc7 {[%clk 0:02:32.9]} 1-0